Cogmind - Beta 14 @@@ ROGUE MODE // 2024.11.06 @ 21:08:19 Player: Shimmyarah Result: Destroyed by Y-45 Defender with Beam Rifle Performance ------------- Evolutions (2) 1000 Regions Visited (4) 800 Robots Destroyed (45) 225 Value Destroyed (862) 862 Prototype IDs (0) 0 Alien Tech Used (0) 0 Bonus (-97) -97 TOTAL SCORE: 2790 Bonus ------- Follower Combat Kills 42 Friendly Fire -139 Cogmind --------- Core Integrity 0/550 Matter 264/300 Energy 138/250 System Corruption 9% Temperature Warm (148) Movement Core (100) Ox1 Location -8/Materials Parts ------- > --- POWER (2) -------- Ion Engine > --- PROPULSION (3) --- (None) > --- UTILITY (3) ------ Signal Interpreter > --- WEAPON (3) ------- (None) > --- INVENTORY (5) ---- Armor Integrity Analyzer Peak State ------------ > --- POWER ------------ Ion Engine Light Nuclear Core > --- PROPULSION ------- Compact Wheel Compact Wheel Compact Wheel > --- UTILITY ---------- Small Storage Unit Signal Interpreter Seismic Detector > --- WEAPON ----------- Beam Rifle Beam Cannon Mini Grenade Launcher > --- INVENTORY -------- Ion Engine Ion Engine Improved Terrain Scanner Beam Rifle Improved Light Cannon Mini Grenade Launcher [Rating: 16] Favorites ----------- Power Ion Engine Engine Ion Engine Power Core Light Nuclear Core Propulsion Compact Wheel Treads Light Treads Leg Improved Carbon-fiber Leg Wheel Compact Wheel Utility Small Storage Unit Device Seismic Detector Storage Small Storage Unit Processor Signal Interpreter Weapon Assault Rifle Energy Gun Beam Rifle Energy Cannon Beam Cannon Ballistic Gun Assault Rifle Ballistic Cannon Improved Light Cannon Launcher Mini Grenade Launcher Build | -11 -10 -9 -9 -8 ------- Run | Yrd Mat Mat Min Mat Slots Evolved 4 | . . 2 . 2 Power 1 | . . 1 . . Propulsion 1 | . . 1 . . Utility 1 | . . . . 1 Weapon 1 | . . . . 1 Parts Attached 33 | 8 3 7 6 9 Power 7 | 1 2 1 1 2 Engine 6 | 1 1 1 1 2 Core 1 | . 1 . . . Reactor . | . . . . . Propulsion 9 | 2 . 3 3 1 Treads 3 | 2 . . 1 . Leg 1 | . . . . 1 Wheel 5 | . . 3 2 . Hover . | . . . . . Flight . | . . . . . Utility 6 | 2 . . 2 2 Device 4 | 1 . . 1 2 Storage 1 | 1 . . . . Processor 1 | . . . 1 . Hackware . | . . . . . Protection . | . . . . . Artifact . | . . . . . Weapon 11 | 3 1 3 . 4 Energy Gun 5 | 1 1 2 . 1 Energy Cannon 1 | . . 1 . . Ballistic Gun 2 | 2 . . . . Ballistic Cannon 1 | . . . . 1 Launcher 2 | . . . . 2 Special Weapon . | . . . . . Impact Weapon . | . . . . . Slashing Weapon . | . . . . . Piercing Weapon . | . . . . . Special Melee Weapon . | . . . . . Unidentified Prototypes . | . . . . . Parts Lost 20 | . 3 1 . 16 Power 5 | . 2 . . 3 Propulsion 6 | . 1 1 . 4 Utility 3 | . . . . 3 Weapon 6 | . . . . 6 Highest Loss Streak 16 | . 1 1 . 16 To Critical Strikes 1 | . . . . 1 Average Slot Usage (%) 94 | . 91 92 100 81 Engine 10 | . 11 11 11 7 Core 8 | . 1 11 11 6 Treads 9 | . 22 3 8 . Wheel 18 | . . 23 24 19 Device 11 | . 14 11 10 8 Storage 11 | . 14 11 11 7 Processor 1 | . . . . 9 Energy Gun 9 | . 5 11 11 7 Energy Cannon 5 | . . . 11 6 Ballistic Gun 6 | . 22 8 . . Peak Build Rating 16 | 7 8 13 13 16 Average Rating 10 | 5 6 10 12 12 On Entrance 8 | . 7 8 12 13 Naked Turns . | . . . . . Heaviest Build 23 | 14 15 22 22 23 Greatest Support 48 | 40 40 48 48 48 Greatest Overweight (x) 2 | . . . . 2 Average Overweight (x) . | . . . . . Largest Inventory Capacity 8 | 8 8 8 8 8 Average Capacity 7 | 7 8 8 8 7 Most Carried 8 | 5 6 8 8 7 Average Carried 5 | 1 4 6 7 4 Final Capacity 8 | 8 8 8 8 5 Final Carried 8 | 4 5 8 8 1 Class Distribution -------------------- 93% | Mutant 6% | Gunner Dominant Class ---------------- Mutant | -10/Materials Mutant | -9/Materials Mutant | -9/Mines Gunner | -8/Materials Resources | -11 -10 -9 -9 -8 ----------- Run | Yrd Mat Mat Min Mat Matter Collected 712 | 336 88 102 67 119 Remotely . | . . . . . Salvage Created 1176 | 208 471 163 119 215 Parts 101 | 21 31 21 12 16 Haulers Intercepted . | . . . . . Recyclers Shooed 4 | . . 3 . 1 Parts Field Recycled . | . . . . . Retrieved Matter . | . . . . . Parts Self-Destructed . | . . . . . Prevented . | . . . . . Kills | -11 -10 -9 -9 -8 ------- Run | Yrd Mat Mat Min Mat Combat Hostiles Destroyed 20 | . 7 6 3 4 Guns 12 | . 6 6 . . Cannons 3 | . . . 3 . AOE 5 | . 1 . . 4 Classes Destroyed 9 | 3 3 1 . 2 Worker 3 | 1 1 1 . . Builder 5 | . 3 1 . 1 Tunneler 9 | 6 . . 3 . Recycler 3 | 1 2 . . . Mechanic 1 | . . . . 1 Watcher 3 | . 1 2 . . Swarmer 9 | . . 6 3 . Grunt 9 | . 7 . . 2 Specialist 2 | . . . . 2 Thug 1 | . . . . 1 Best Kill Streak 6 | 5 5 5 3 6 Combat Bots Only 4 | . 3 3 3 4 Max Kills in Single Turn 4 | 2 4 2 1 2 Gunslinging . | . . . . . Exploded 2 | . 1 . . 2 Melee . | . . . . . Uniques/NPCs Destroyed . | . . . . . Combat | -11 -10 -9 -9 -8 -------- Run | Yrd Mat Mat Min Mat Hostile Shots Fired 178 | . 61 26 13 78 Missed 46 | . 14 8 1 23 Damage Taken 2456 | 8 649 177 102 1520 Core 734 | . 143 9 24 558 Absorbed by Shields . | . . . . . Core Remaining (%) 77 | 100 42 . 91 . Volleys Fired 85 | 15 24 17 18 11 Largest 3 | 2 2 2 2 3 Hottest 146 | 60 60 60 116 146 Shots Fired 157 | 30 48 34 25 20 Gun 122 | 30 48 34 7 3 Cannon 24 | . . . 18 6 Launcher 11 | . . . . 11 Special . | . . . . . Kinetic 91 | 26 45 17 . 3 Thermal 31 | . . . 25 6 Explosive 11 | . . . . 11 Electromagnetic 24 | 4 3 17 . . Robot Hit Streak 13 | 8 13 6 5 8 Robot Miss Streak 4 | 2 3 4 2 2 Penetration Max . | . . . . . Secondary Targets 2 | . 1 1 . . Max Gunslinging Chain 1 | . 1 1 . . Shots Hit Robots 99 | 20 34 16 16 13 Core Hits 68 | 10 21 10 6 21 Critical Kills . | . . . . . Critical Parts Destroyed 1 | . 1 . . . Critical Strikes 2 | . 2 . . . Destroy 1 | . 1 . . . Corrupt 1 | . 1 . . . Melee Attacks . | . . . . . Impact . | . . . . . Slashing . | . . . . . Piercing . | . . . . . Sneak Attacks . | . . . . . Combat Hostiles . | . . . . . Follow-up Attacks . | . . . . . Damage Inflicted 2756 | 254 950 288 271 993 Guns 930 | 234 372 267 57 . Cannons 294 | . . . 210 84 Explosions 1491 | 20 577 . . 894 Melee . | . . . . . Ramming 41 | . 1 21 4 15 Kinetic 723 | 181 335 157 . 50 Thermal 898 | 20 577 . 267 34 Explosive 894 | . . . . 894 Electromagnetic 200 | 53 37 110 . . Impact . | . . . . . Slashing . | . . . . . Piercing . | . . . . . Highest Corruption 9 | . . . . 9 Average Corruption 9 | . . . . 9 Corruption Purged . | . . . . . Corruption Blocked . | . . . . . Effects 3 | . . . . 3 Heat Flow Errors 1 | . . . . 1 Energy Discharges 1 | . . . . 1 Data Loss (minor) 1 | . . . . 1 Overload Shots . | . . . . . Overflow Damage 111 | . 52 . 1 58 Projectiles 1 | . . . 1 . Explosions 110 | . 52 . . 58 Melee . | . . . . . Knockbacks 1 | . . . . 1 Impact . | . . . . . Kinetic 1 | . . . . 1 Secondary . | . . . . . Self-Inflicted Damage 290 | 9 46 10 2 223 Shots 8 | 1 1 . . 6 Rammed 10 | . 3 2 1 4 Targets Rammed 12 | . 5 2 1 4 Kicked . | . . . . . Crushed 2 | . 2 . . . Highest Temperature 330 | 12 53 80 330 197 Average Temperature 65 | 12 14 36 104 74 Received Heat Transfer 645 | . 348 18 . 279 Effects 3 | . . . 3 . Energy Bleed 1 | . . . 1 . Interference 2 | . . . 2 . Siege Activations . | . . . . . Robots Corrupted . | . . . . . Combat Hostiles . | . . . . . Parts Fried . | . . . . . Impact Corruptions . | . . . . . Robots Melted . | . . . . . Combat Hostiles . | . . . . . Parts Melted 1 | . . . 1 . Heat Transferred 1116 | 50 400 . 592 74 Parts Sabotaged . | . . . . . Parts Stolen . | . . . . . Parts Stripped . | . . . . . Power Chain Reactions 3 | 1 2 . . . Alert | -11 -10 -9 -9 -8 ------- Run | Yrd Mat Mat Min Mat Peak Influence 433 | 40 433 399 321 172 Initial 182 | . 26 182 155 46 Average 160 | 14 145 296 177 79 Maximum Alert Level 2 | . 2 1 1 . Low Security (%) 74 | 100 73 21 85 100 Level 1 23 | . 16 78 14 . Level 2 1 | . 10 . . . Level 3 . | . . . . . Level 4 . | . . . . . Level 5 . | . . . . . High Security . | . . . . . Max Security . | . . . . . Squads Dispatched 7 | . 3 . . 4 Investigation 3 | . 2 . . 1 Extermination . | . . . . . Reinforcement 4 | . 1 . . 3 Assault . | . . . . . Garrison . | . . . . . Intercept . | . . . . . Searches Triggered . | . . . . . Construction Impeded . | . . . . . Haulers Reinforced . | . . . . . Active Scanning Responses . | . . . . . Cargo Convoy Interrupts . | . . . . . Stealth | -11 -10 -9 -9 -8 --------- Run | Yrd Mat Mat Min Mat Distress Signals 3 | . 1 1 . 1 Communications Jammed . | . . . . . Distress Signals . | . . . . . Times Spotted 40 | . 13 10 5 12 Peak Tracking Total 9 | . 4 4 4 9 Tactical Retreats 2 | . . . 1 1 Traps | -11 -10 -9 -9 -8 ------- Run | Yrd Mat Mat Min Mat Traps Triggered 1 | . 1 . . . Indirectly . | . . . . . Trap Hack Attempts . | . . . . . Triggered . | . . . . . Disarmed . | . . . . . Reprogrammed . | . . . . . Reused . | . . . . . Traps Extracted . | . . . . . Installed . | . . . . . Triggered . | . . . . . Machines | -11 -10 -9 -9 -8 ---------- Run | Yrd Mat Mat Min Mat Machines Disabled 12 | . 9 1 2 . Max in Single Turn 9 | . 9 1 1 . Machines Repaired . | . . . . . Machines Dismantled . | . . . . . Machines Sabotaged . | . . . . . Overloaded Fab Kills . | . . . . . Hacking | -11 -10 -9 -9 -8 --------- Run | Yrd Mat Mat Min Mat Machines Accessed 5 | . 2 1 . 2 Terminals 4 | . 2 . . 2 Fabricators . | . . . . . Repair Stations . | . . . . . Recycling Units 1 | . . 1 . . Scanalyzers . | . . . . . Garrison Access . | . . . . . Total Hacks 13 | . 9 1 . 3 Successful 4 | . 2 1 . 1 Failed 9 | . 7 . . 2 Catastrophic 1 | . 1 . . . Database Lockouts . | . . . . . Manual 14 | . 9 2 . 3 Terminals 12 | . 9 . . 3 Fabricators . | . . . . . Repair Stations . | . . . . . Recycling Units 1 | . . 1 . . Scanalyzers . | . . . . . Garrison Access . | . . . . . Terminal Hacks 1 | . 1 . . . Hauler Manifests 1 | . 1 . . . Fabricator Hacks . | . . . . . Repair Station Hacks . | . . . . . Recycling Unit Hacks . | . . . . . Scanalyzer . | . . . . . Garrison Access Hacks . | . . . . . Unauthorized Hacks 3 | . 1 1 . 1 Terminals 2 | . 1 . . 1 Operators 2 | . 1 . . 1 Fabricators . | . . . . . Repair Stations . | . . . . . Recycling Units 1 | . . 1 . . Monitor 1 | . . 1 . . Scanalyzers . | . . . . . Garrison Access . | . . . . . Data Cores Recovered . | . . . . . Used . | . . . . . Hacking Detections 6 | . 2 2 . 2 Full Trace Events 3 | . 2 . . 1 Feedback Events . | . . . . . Feedback Blocked . | . . . . . Robot Schematics Acquired . | . . . . . Robots Built . | . . . . . Authchips . | . . . . . Time . | . . . . . Total Robot Build Rating . | . . . . . Part Schematics Acquired . | . . . . . Parts Built . | . . . . . Authchips . | . . . . . Time . | . . . . . Total Part Build Rating . | . . . . . Parts Repaired . | . . . . . Time . | . . . . . Parts Recycled . | . . . . . Recycled Matter . | . . . . . Retrieved Matter . | . . . . . Retrieved Components . | . . . . . Parts Scanalyzed . | . . . . . Part Schematics Acquired . | . . . . . Parts Damaged . | . . . . . Bothacking | -11 -10 -9 -9 -8 ------------ Run | Yrd Mat Mat Min Mat Used RIF Installer . | . . . . . Robots Hacked . | . . . . . Non-combat . | . . . . . Combat . | . . . . . Robot Hacks Applied . | . . . . . Relay Couplers Released . | . . . . . Fabnet Peak Effective % . | . . . . . Robots Rewired . | . . . . . Allies Hacked . | . . . . . Hacks Repelled . | . . . . . Allies | -11 -10 -9 -9 -8 -------- Run | Yrd Mat Mat Min Mat Total Allies 2 | . . . 2 . Largest Group 2 | . . . 2 1 Highest-Rated Group 45 | . . . 45 31 Highest-Rated Ally 31 | . . . 31 31 Total Orders . | . . . . . Ally Attacks 10 | . . . 4 6 Total Damage 127 | . . . 44 83 Kills 2 | . . . 1 1 Allies Corrupted . | . . . . . Allies Melted . | . . . . . Intel | -11 -10 -9 -9 -8 ------- Run | Yrd Mat Mat Min Mat Robot Analysis Total . | . . . . . Derelict Logs Recovered 2 | . . . 2 . Drone Launches . | . . . . . Drone Recoveries . | . . . . . Exploration | -11 -10 -9 -9 -8 ------------- Run | Yrd Mat Mat Min Mat Turns Passed 1614 | 258 279 317 612 148 Spaces Moved 1128 | 134 123 214 556 101 Core 25 | 16 . . . 9 Treads 292 | 118 123 51 . . Legs 1 | . . . . 1 Wheels 810 | . . 163 556 91 Hover . | . . . . . Flight . | . . . . . Fastest Speed 50 | 50 160 100 100 100 Average Speed 115 | 146 160 114 100 103 Slowest Speed 160 | 160 160 160 100 150 Overloaded Moves . | . . . . . Propulsion Burnouts . | . . . . . Robots Hopped . | . . . . . Cave-ins Triggered 1 | . . . . 1 Exploration Rate (%) 30 | 6 29 20 84 12 Regions Visited 4 Branch Regions 1 Pre-discovered Areas 2 | . . . 2 . Known Exits Taken 1 | . . . 1 . Unknown Exits Taken 3 | 1 1 1 . . Scrap Searched 3 | . . . 3 . Spaces Dug . | . . . . . Terrain Destroyed 159 | 3 55 . . 101 Melee . | . . . . . Projectile . | . . . . . AOE 159 | 3 55 . . 101 Terrain Rammed . | . . . . . Walls Destroyed . | . . . . . Machines Disabled . | . . . . . Actions | -11 -10 -9 -9 -8 --------- Run | Yrd Mat Mat Min Mat Total 1293 | 167 159 253 587 127 Wait . | . . . . . Move 1124 | 133 122 213 555 101 Hop . | . . . . . Pick Up 29 | 11 4 9 3 2 Fast Attach 3 | . . 2 1 . Attach 23 | 7 2 4 1 9 Detach . | . . . . . Swap 7 | 1 1 1 4 . Drop 10 | . 1 5 4 . Fire 85 | 15 24 17 18 11 Melee . | . . . . . Ram 7 | . . 2 1 4 Kick . | . . . . . Crush 5 | . 5 . . . Escape Stasis . | . . . . . Rewire . | . . . . . Trap . | . . . . . Miscellaneous . | . . . . . Route ------- -11/Scrapyard -10/Materials -9/Materials -9/Mines (discovered 2 exits: *Mat x2) -8/Materials History --------- Turn | Location | Event 12 | -11/Scrapyard | Discovered new exit (range 15) 259 | -11/Scrapyard | Entered Materials 303 | -10/Materials | Build established: Mutant 453 | -10/Materials | Core integrity fell below 50% 513 | -10/Materials | Discovered new exit (range 16) 538 | -10/Materials | Entered another Materials area 538 | -9/Materials | Evolved 2 slots: Power x1, Propulsion x1 850 | -9/Materials | Discovered new exit (range 4) 855 | -9/Materials | Entered Mines 857 | -9/Mines | Met a Derelict bent on vengeance 1052 | -9/Mines | Identified exit to Materials 1308 | -9/Mines | Discovered exit to Materials (range 9) 1310 | -9/Mines | Learned location of Storage (-7) 1467 | -9/Mines | Entered Materials 1467 | -8/Materials | Accompanied by 1 ally 1467 | -8/Materials | Evolved 2 slots: Utility x1, Weapon x1 1472 | -8/Materials | Led the pair of lost Derelicts to an unsafe place 1560 | -8/Materials | Crushed by falling debris 1596 | -8/Materials | Core integrity fell below 50% 1613 | -8/Materials | Core integrity fell below 20% 1615 | -8/Materials | Destroyed by Y-45 Defender with Beam Rifle Last Messages --------------- 01607_ Acquired 44 matter. 01607_ K-01 Serf collects debris. 01608_ Acquired Imp. Carbon-fiber Leg. 01609_ Imp. Terrain Scanner destroyed. 01610_ ALERT: Hostiles spotted, dispatching reinforcements to Terminal M002. 01610_ K-01 Serf collects debris. 01611_ Acquired Armor Integrity Analyzer. 01612_ Penetrated by Slug. 01612_ Imp. Carbon-fiber Leg destroyed. 01612_ Critical hit (Blast). 01612_ Knocked back. 01613_ System corrupted: Heat flow error (+182). 01613_ Penetrated by Slug. 01613_ Beam Rifle destroyed. 01614_ K-01 Serf collects debris. 01614_ Penetrated by Slug. 01614_ U-05 Engineer suffers critical hit (Blast). 01614_ U-05 Engineer destroyed. Map ----- +----------------------------------------------------+ | ????????????????????????????????????????????????? | | ????????????????????????????????????????????????? | | ????????????????????????????????????????????????? | | ????????????????????????????????????????????????? | | ??????????????????o?????????????????????????????? | | ????????????????????????????????????????????????? | | ????????????????????????????????????????????????? | | ????????????????????????????????????????????????? | | ????????????????????????????????????????????????? | | ????????????????????????????????????????????????? | | ????????????????????????????????????????????????? | | ???????????????????? ???????????????????????????? | | ???????????????????? ??????????????????????????? | | ????????????????????# ??????????????????????????? | | ????????????????????# #+##??????????????????????? | | ????????????????????# ??????????????????????? | | ????????????????????# ??????????????????????? | | ????????????????????# ??????????????????????? | | ????????????????????? Y ??????????????????????? | | ????????????????????? ??????????????????????? | | ?????????????????????# #??????????????????????? | | ?????????????????????# #?#######??????????????? | | ?????????????????????#% # #??????????????? | | ??????????????"??????# + k #??????????????? | | ?????????????????????# # #??????????????? | | ?????????????????????# @ # ###?????????????? | | ???????????########### #?????????????? | | ???????????# ; # #?????????????? | | ???????????# % % #?????????????? | | ??????????## # ###???????????? | | ???????????# [ g ???????????? | | ???????????# # [%= ####??????????? | | ???????????# k ![[ ! g #?????????????? | | ???????????# !% !#?????????????? | | ???????????# #?????????????? | | ???????????########### ######?????????????? | | ?????????????# T ; #####??????????????????? | | ?????????????# + #????###??#????????????? | | ?????????????# # " ## ####??????#?????? | | ?????????????#######? whH ## #?????? | | ????????????????????## = # # ??????? | | ?????????????########% ### ??? | | ?????????????# T" % ??? | | ?????????????# " = ## #?????? | | ?????????????# #????###?????? | | ??????????#######+### ##????????????? | | ??????????# ###+# ###?????????????? | | ??????????# #! ### ###?????????????? | | ??????????# # #??####???????????????? | | ??????????# """ # """ #?????????????????????? | +----------------------------------------------------+ Best States ------------- Heat Dissipation 31 Energy Generation 19 Energy Capacity 310 Matter Stores 300 Matter Capacity 300 Sight Range 16 Terrain Scan Range 16 Terrain Scan Density 10 Evasion (%) 50 Recoil Reduction 2 Item Schematics ----------------- None Robot Schematics ------------------ None Fabricated ------------ Nothing Alien Tech Used ----------------- None Achievements -------------- None Challenges ------------ None Game ------ Seed CloakCannonChainsword Manual? 0 Play Time 00:23:09 Cumulative 14.3 hours Start 2024.11.06 @ 19:08:43 End 2024.11.06 @ 21:08:19 Sessions 3 Manual Loads 0 Difficulty Rogue Special Mode None Game No. 34 Rogue 34 Adventurer 0 Explorer 0 Win Type - Total 0 Types 0/0/0/0/0/0/0/0/0 Lore% 8 Gallery% 15 Achievement% 15 Wizard Run 0 Options --------- Layout 1 ASCII 0 Keyboard 0 Movement Arrows Keybinds 0 Fullscreen 1 Font 24/Smallcaps Map View 50x40 Zoom Use 2% Tactical HUD 1 Map Filters NONE Filters NONE Steam 1 RUN: 0b530791-c065-4201-9c0a-160782203833